{"text_format":"1","workbook":"xlsx","n_sheets":5,"sheets":["Početna","Investicije","EU projekti","Obrtna sredstva","Restrukturiranje"],"not_rendered":{"charts":0,"images":2,"macros":1,"external_links":0,"defined_names":4,"comments":0,"pivot_tables":0},"unopened":[],"bounds":{"document_bytes":16777216,"sheet_cells":100000,"rows_first":2000,"rows_last":500,"rows_between":2000,"halvings":0,"cell_chars":16384,"cell_head_chars":4096},"cells_cut":0,"cells_raw":0,"read":"whole","date_system":"1900"}

{"sheet":"Početna","index":0,"n_rows":28,"n_cols":9,"rows_kept":28,"cut":false,"hidden":false,"merged":[[18,8,18,12],[19,8,19,12],[27,8,27,12],[20,6,20,13],[22,8,22,12],[23,8,23,12],[24,8,24,12],[21,8,21,12],[2,6,3,13],[11,8,12,12],[8,8,8,12],[9,8,9,12],[10,8,10,12],[5,8,5,12],[6,8,6,12],[7,8,7,12]]}
[]
[]
[null,null,null,null,null,null,"Ovisno o programu kreditiranja, uz zahtjev za kredit dostavlja se jedan od sljedećih popunjenih obrazaca:"]
[]
[null,"Popis programa",null,null,null,null,"Klik na ikonu"]
[null,null,"• Brodarstvo",null,null,null,null,null,"Podaci o ulaganju - Investicije"]
[null,null,"• Energetska obnova zgrada"]
[null,null,"• Gospodarstvo"]
[null,null,"• Infrastruktura"]
[null,null,"• Malo i srednje poduzetništvo"]
[null,null,"• Nova proizvodnja"]
[null,null,"• Početnici"]
[null,null,"• Poduzetništvo mladih"]
[null,null,"• Poljoprivreda i ujednačeni razvoj"]
[null,null,"• Pronalasci"]
[null,null,"• Turizam"]
[null,null,"• Zaštita okoliša"]
[null,null,"• Žene poduzetnice"]
[null,null,"• EU projekti javnog sektora",null,null,null,null,null,"Podaci o ulaganju - EU projekti"]
[null,null,"• EU projekti privatnog sektora"]
[null,null,"• EU projekti ruralnog razvoja, ribarstva.."]
[null,null,"• Likvidnost",null,null,null,null,null,"Podaci o ulaganju (klijentu) - Obrtna sredstva"]
[null,null,"• Kreditiranje proizvodnje"]
[null,null,"• Priprema izvoza"]
[null,null,"• Priprema poljoprivredne proizvodnje"]
[null,null,"• Priprema turističke sezone"]
[null,null,"• Trajna obrtna sredstva"]
[null,null,"• Restrukturiranje",null,null,null,null,null,"Podaci o ulaganju (klijentu) - Restrukturiranje"]

{"sheet":"Investicije","index":1,"n_rows":76,"n_cols":18,"rows_kept":76,"cut":false,"hidden":false,"merged":[[39,14,39,15],[40,14,40,15],[41,14,41,15],[46,0,46,2],[24,17,25,27],[28,17,29,27],[30,17,31,27],[46,17,47,27],[65,0,65,2],[65,3,65,5],[30,0,31,2],[30,3,31,15],[28,0,29,2],[28,3,29,15],[34,14,34,15],[35,14,35,15],[36,14,36,15],[37,14,37,15],[38,14,38,15],[33,14,33,15],[34,0,34,13],[35,0,35,13],[36,0,36,13],[66,0,66,2],[66,3,66,5],[67,0,67,2],[67,3,67,5],[59,0,59,2],[59,3,59,5],[60,0,60,2],[61,0,61,2],[62,0,62,2],[62,3,62,5],[63,0,63,2],[63,3,63,5],[60,3,60,5],[61,3,61,5],[8,1,8,4],[8,5,8,6],[8,7,8,8],[8,9,8,10],[8,11,8,12],[8,14,8,15],[9,1,9,4],[9,5,9,6],[54,0,54,2],[54,3,54,5],[48,4,48,15],[49,4,49,15],[50,4,50,15],[51,4,51,15],[37,0,37,13],[38,0,38,13],[39,0,39,13],[40,0,40,13],[41,0,41,13],[42,0,42,13],[43,0,43,13],[44,0,44,13],[47,4,47,15],[46,14,46,15],[0,14,0,15],[2,13,2,15],[6,1,7,4],[6,5,7,6],[6,7,6,10],[6,11,6,13],[6,14,7,15],[7,7,7,8],[7,9,7,10],[7,11,7,12],[5,0,5,7],[0,0,0,5],[2,2,2,6],[6,0,7,0],[5,14,5,15],[9,7,9,8],[9,9,9,10],[9,11,9,12],[9,14,9,15],[10,1,10,4],[10,5,10,6],[10,7,10,8],[10,9,10,10],[10,11,10,12],[10,14,10,15],[11,1,11,4],[11,5,11,6],[11,7,11,8],[11,9,11,10],[11,11,11,12],[11,14,11,15],[12,1,12,4],[12,5,12,6],[12,7,12,8],[12,9,12,10],[12,11,12,12],[12,14,12,15],[13,1,13,4],[13,5,13,6],[13,7,13,8],[13,9,13,10],[13,11,13,12],[13,14,13,15],[14,1,14,4],[14,5,14,6],[14,7,14,8],[14,9,14,10],[14,11,14,12],[14,14,14,15],[15,1,15,4],[15,5,15,6],[15,7,15,8],[15,9,15,10],[15,11,15,12],[15,14,15,15],[16,1,16,4],[16,5,16,6],[16,7,16,8],[16,9,16,10],[16,11,16,12],[16,14,16,15],[22,1,22,4],[22,5,22,6],[22,7,22,8],[22,9,22,10],[22,11,22,12],[22,14,22,15],[24,0,25,2],[24,3,25,15],[20,1,20,4],[20,5,20,6],[20,7,20,8],[20,9,20,10],[20,11,20,12],[21,7,21,8],[21,9,21,10],[21,11,21,12],[21,14,21,15],[17,1,17,4],[17,5,17,6],[17,7,17,8],[17,9,17,10],[17,11,17,12],[17,14,17,15],[20,14,20,15],[21,1,21,4],[21,5,21,6],[18,1,18,4],[18,5,18,6],[18,7,18,8],[18,9,18,10],[18,11,18,12],[18,14,18,15],[19,1,19,4],[19,5,19,6],[19,7,19,8],[19,9,19,10],[19,11,19,12],[19,14,19,15],[70,9,70,14],[75,9,75,14],[42,14,42,15],[43,14,43,15],[44,14,44,15],[75,0,75,4],[76,0,77,4],[74,0,74,4],[69,0,69,4],[57,3,57,5],[58,0,58,2],[58,3,58,5],[71,0,72,4],[47,0,51,2],[71,9,72,14],[76,9,77,14],[55,3,55,5],[56,3,56,5],[57,0,57,2],[55,0,55,2],[56,0,56,2],[70,0,70,4],[64,0,64,2],[64,3,64,5]]}
["Podaci o ulaganju - Investicije",null,null,null,null,null,null,null,null,null,null,null,"Datum izvještaja:"]
[]
["Naziv klijenta:",null,null,null,null,null,null,null,null,null,null,null,"OIB:"]
[]
["PDV uključen:"]
["Struktura investicije i izvori sredstva",null,null,null,null,null,null,null,null,null,null,null,null,null,"Iznos u kn"]
["Rb.","Namjena",null,null,null,"Ukupno",null,"Vlastita sredstva",null,null,null,"Kredit HBOR-a",null,null,"od iznosa kredita za refundaciju"]
[null,null,null,null,null,null,null,"Vlastiti izvori",null,"Ostali izvori",null,"Iznos",null,"%",null,null,null,"Namjena: navesti stavke ulaganja kao: osnivačka ulaganja, zemljište, nasad, građevinski objekti, oprema i uređaji i sl."]
["I.","Osnovna sredstva ukupno",null,null,null,{"$f":"SUM(F10:G20)","v":0},null,{"$f":"SUM(H10:I20)","v":0},null,{"$f":"SUM(J10:K20)","v":0},null,{"$f":"SUM(L10:M20)","v":0},null,{"$f":"L9/L22","v":{"$error":"#DIV/0!"}},{"$f":"SUM(O10:P20)","v":0}]
[null,null,null,null,null,{"$f":"SUM(H10:M10)","v":0},null,null,null,null,null,null,null,"-"]
[null,null,null,null,null,{"$f":"SUM(H11:M11)","v":0},null,null,null,null,null,null,null,"-"]
[null,null,null,null,null,0,null,null,null,null,null,null,null,"-"]
[null,null,null,null,null,0,null,null,null,null,null,null,null,"-"]
[null,null,null,null,null,0,null,null,null,null,null,null,null,"-"]
[null,null,null,null,null,0,null,null,null,null,null,null,null,"-"]
[null,null,null,null,null,0,null,null,null,null,null,null,null,"-"]
[null,null,null,null,null,0,null,null,null,null,null,null,null,"-"]
[null,null,null,null,null,0,null,null,null,null,null,null,null,"-"]
[null,null,null,null,null,0,null,null,null,null,null,null,null,"-"]
[null,null,null,null,null,0,null,null,null,null,null,null,null,"-"]
["II.","Obrtna sredstva ukupno",null,null,null,0,null,null,null,null,null,null,null,{"$f":"L21/L22","v":{"$error":"#DIV/0!"}}]
["III.","Sveukupno (I. + II.)",null,null,null,{"$f":"F9+F21","v":0},null,{"$f":"H9+H21","v":0},null,{"$f":"J9+J21","v":0},null,{"$f":"L9+L21","v":0},null,1,{"$f":"O9+O21","v":0}]
["III.","Sveukupno %",null,null,null,1,null,{"$f":"H22/F22","v":{"$error":"#DIV/0!"}},null,{"$f":"J22/F22","v":{"$error":"#DIV/0!"}},null,{"$f":"L22/F22","v":{"$error":"#DIV/0!"}},null,"-",{"$f":"O22/L22","v":{"$error":"#DIV/0!"}}]
[]
["Pojašnjenja",null,null,null,null,null,null,null,null,null,null,null,null,null,null,null,null,"Pojašnjenja: navesti ako su eventualno navedeni iznosi s PDV-om i zašto (u slučajevima kada korisnik kredita obavlja isporuku dobara ili pruža usluge koje su po Zakonu o porezu na dodanu vrijednost izuzete od obračunavanja PDV-a, a u tu svrhu se odobrava kredit HBOR-a, kao i u slučajevima kada korisnik kredita ne ostvaruje prihod dovoljan za ulazak u sustav PDV-a, HBOR može razmotriti kreditiranje predračunske vrijednosti investicije s PDV-om). Navesti eventualno druge važne napomene."]
[]
[]
["Prethodno uložena sredstva"]
["Vlastita sredstva",null,null,null,null,null,null,null,null,null,null,null,null,null,null,null,null,"Vlastita sredstva: navesti ako postoje stavke vlastitih sredstava u strukturi investicije koje su realizirane. Za svaku stavku navesti: naziv, osnovu realizacije (ugovoreno i/ili plaćeno), iznos i datum realizacije."]
[]
["Kredit HBOR-a",null,null,null,null,null,null,null,null,null,null,null,null,null,null,null,null,"Kredit HBOR-a: navesti ako postoje stavke ukupnog kredita u strukturi investicije koje su plaćene iz vlastitih sredstava ili se planiraju platiti prije povlačenja sredstava kredita. Za svaku stavku navesti: naziv, iznos i datum (ili planirani datum) plaćanja. Refundaciju sredstava HBOR može prihvatiti iznimno za propisane vrste ulaganja i na propisani način (Odluka o općim uvjetima kreditnog poslovanja HBOR-a, točka 5.6. Način korištenja kredita - kod izravnog kreditiranja)."]
[]
[]
["Vrsta vlastitog udjela u investiciji (označiti)",null,null,null,null,null,null,null,null,null,null,null,null,null,"Iznos u kn"]
["Vlastiti izvori financiranja",null,null,null,null,null,null,null,null,null,null,null,null,null,{"$f":"SUM(O36:P37)","v":0}]
["      Novčana sredstva investitora"]
["      Osnovna sredstva investitora pribavljena radi investicije"]
["Ostali izvori financiranja",null,null,null,null,null,null,null,null,null,null,null,null,null,{"$f":"SUM(O39:P44)","v":0}]
["      EU sredstva"]
["      Novčana sredstva drugih pravnih i fizičkih osoba"]
["      Kreditna sredstva drugih financijskih institucija"]
["      Ulog drugih pravnih ili fizičkih osoba (u novcu ili stvarima)"]
["      Ostalo (niže navesti što):"]
[]
["Ukupno",null,null,null,null,null,null,null,null,null,null,null,null,null,{"$f":"O35+O38","v":0}]
[]
["Zaštita okoliša",null,null,null,null,null,null,null,null,null,null,null,null,null,"označiti",null,null,"Zaštita okoliša: označiti karakteristike projekta/investicije s aspekta zaštite okoliša. Ukoliko poslovna banka ne može ove karakteristike ocijeniti sama, ocjenu će napraviti HBOR u kojem slučaju je potrebno dostaviti ispunjen Upitnik o zaštiti okoliša te eventualno i drugu potrebnu dokumentaciju."]
["Karakterisike projekta/investicije s aspekta zaštite okoliša",null,null,null,"Energetska učinkovitost"]
[null,null,null,null,"Usklađenost sa zakonima o zaštiti okoliša"]
[null,null,null,null,"Potrebna procjena utjecaja na okoliš"]
[null,null,null,null,"Postoji ili je ustanovljen osobiti rizik za okoliš u području zaštite prirode"]
[null,null,null,null,"Ne može ocijeniti poslovna banka, ocjenjuje HBOR"]
[]
["Planirana dinamika korištenja kredita"]
["Mjesec/godina",null,null,"Iznos u kn"]
[]
[]
[]
[]
[]
[]
[]
[]
[]
[]
[]
[]
[]
[]
["Klijent"]
["Mjesto i datum",null,null,null,null,null,null,null,null,"Ime i prezime ovlaštene osobe i potpis"]
[]
[]
[]
["Poslovna banka"]
["Mjesto i datum",null,null,null,null,null,null,null,null,"Ime i prezime ovlaštene osobe i potpis"]

{"sheet":"EU projekti","index":2,"n_rows":95,"n_cols":14,"rows_kept":95,"cut":false,"hidden":false,"merged":[[11,13,11,25],[48,13,49,25],[50,13,51,25],[66,13,71,21],[15,13,16,24],[30,13,30,23],[44,13,45,25],[0,0,0,5],[39,1,39,9],[40,1,40,9],[41,1,41,9],[42,0,42,9],[47,0,47,3],[34,1,34,9],[35,1,35,9],[36,1,36,9],[37,1,37,9],[38,1,38,9],[19,1,19,3],[19,4,19,5],[19,6,19,7],[34,10,34,11],[35,10,35,11],[36,10,36,11],[37,10,37,11],[38,10,38,11],[39,10,39,11],[40,10,40,11],[14,10,14,11],[80,0,80,2],[19,8,19,9],[21,1,21,3],[21,4,21,5],[21,6,21,7],[54,10,54,11],[80,3,80,5],[41,10,41,11],[42,10,42,11],[30,8,30,9],[30,10,30,11],[31,1,31,3],[31,4,31,5],[31,6,31,7],[31,8,31,9],[31,10,31,11],[33,10,33,11],[33,0,33,9],[30,1,30,3],[25,10,25,11],[26,1,26,3],[26,4,26,5],[26,6,26,7],[26,8,26,9],[26,10,26,11],[28,6,28,7],[28,8,28,9],[28,10,28,11],[25,1,25,3],[25,4,25,5],[89,0,89,4],[85,0,85,2],[85,3,85,5],[86,0,86,2],[86,3,86,5],[82,0,82,2],[82,3,82,5],[83,0,83,2],[83,3,83,5],[84,0,84,2],[84,3,84,5],[88,0,88,4],[81,0,81,2],[81,3,81,5],[66,0,66,6],[66,10,66,11],[67,0,71,2],[67,4,67,11],[68,4,68,11],[69,4,69,11],[70,4,70,11],[71,4,71,11],[76,0,76,2],[76,3,76,5],[77,0,77,2],[77,3,77,5],[78,0,78,2],[78,3,78,5],[74,0,74,2],[74,3,74,5],[75,0,75,2],[75,3,75,5],[79,0,79,2],[79,3,79,5],[15,6,16,7],[15,10,16,11],[27,1,27,3],[29,10,29,11],[21,8,21,9],[21,10,21,11],[22,1,22,3],[22,4,22,5],[22,6,22,7],[22,8,22,9],[22,10,22,11],[27,10,27,11],[28,1,28,3],[28,4,28,5],[29,1,29,3],[29,4,29,5],[29,6,29,7],[29,8,29,9],[27,6,27,7],[27,8,27,9],[23,1,23,3],[23,4,23,5],[23,6,23,7],[23,8,23,9],[94,0,94,4],[94,6,94,11],[95,0,96,4],[5,10,5,11],[6,10,6,11],[7,10,7,11],[8,10,8,11],[19,10,19,11],[20,1,20,3],[20,4,20,5],[20,6,20,7],[20,8,20,9],[20,10,20,11],[23,10,23,11],[24,1,24,3],[24,4,24,5],[24,6,24,7],[24,8,24,9],[24,10,24,11],[15,8,16,9],[9,10,9,11],[30,4,30,5],[30,6,30,7],[18,1,18,3],[90,0,91,4],[14,0,14,3],[48,0,49,2],[48,3,49,11],[50,0,51,2],[50,3,51,11],[44,0,45,2],[44,3,45,11],[17,1,17,3],[17,4,17,5],[17,6,17,7],[17,8,17,9],[17,10,17,11],[90,6,91,10],[25,6,25,7],[25,8,25,9],[27,4,27,5],[18,4,18,5],[18,6,18,7],[18,8,18,9],[18,10,18,11],[15,0,16,0],[15,1,16,3],[15,4,16,5],[0,10,0,11],[5,0,5,9],[6,1,6,9],[7,1,7,9],[8,1,8,9],[9,1,9,9],[10,1,10,9],[11,1,11,9],[12,1,12,9],[11,10,11,11],[12,10,12,11],[10,10,10,11],[2,0,2,1],[2,2,2,6],[2,9,2,11],[95,6,96,10],[54,0,54,9],[55,0,55,9],[56,0,56,9],[57,0,57,9],[58,0,58,9],[59,0,59,9],[60,0,60,9],[61,0,61,9],[62,0,62,9],[60,10,60,11],[61,10,61,11],[62,10,62,11],[63,10,63,11],[64,10,64,11],[63,0,63,9],[64,0,64,9],[55,10,55,11],[56,10,56,11],[57,10,57,11],[58,10,58,11],[59,10,59,11],[93,0,93,4],[89,6,89,11]]}
["Podaci o ulaganju - EU projekti",null,null,null,null,null,null,null,"Datum izvještaja:"]
[]
["Naziv klijenta:",null,null,null,null,null,null,null,"OIB:"]
[]
["PDV uključen:"]
["Kredit HBOR-a i prihvatljivi iznos granta za HBOR",null,null,null,null,null,null,null,null,null,"Iznos u kn"]
["A.","Ukupni iznos projekta (prihvatljivi i neprihvatljivi troškovi)"]
["B.","Vlastita sredstva u investiciji (ne uključuje grant)"]
["C.","Prihvatljivi troškovi (sukladno prijavi ili odluci provedbenog tijela)"]
["D.","Neprihvatljivi troškovi"]
["E.","Predviđeni iznos granta"]
["F.","Prihvatljivi iznos granta za HBOR (max. do 70%)",null,null,null,null,null,null,null,null,null,null,null,"Prihvatljivi iznos granta za HBOR: u slučaju jednokrtne isplate granta nije moguće prihvatiti izračun granta iz točke F."]
["G.","Potrebno financirati kreditom (A. - B. - F.)",null,null,null,null,null,null,null,null,{"$f":"K7-K8-K12","v":0}]
[]
["Struktura investicije i izvori sredstva",null,null,null,null,null,null,null,null,null,"Iznos u kn"]
["Rb.","Namjena",null,null,"Iznosi ulaganja",null,"Prihvatljivi troškovi",null,"Postotak potpore u %",null,"Iznos granta",null,null,"Namjena: navesti stavke ulaganja kao: osnivačka ulaganja, zemljište, nasad, građevinski objekti, oprema i uređaji i sl."]
[]
["I.","Osnovna sredstva ukupno",null,null,{"$f":"SUM(E19:F30)","v":0},null,{"$f":"SUM(G19:H30)","v":0},null,{"$f":"SUM(I19:J30)","v":0},null,{"$f":"SUM(K19:L30)","v":0}]
[]
[]
[]
[]
[]
[]
[]
[]
[]
[]
[]
[]
["II.","Obrtna sredstva",null,null,null,null,null,null,null,null,null,null,null,"Obrtna sredstva: u izračun se ne uzimaju prihvatljivi izdaci koji su po svojoj naravi dio obrtnih sredstava."]
["III.","Sveukupno (I. + II.)",null,null,{"$f":"E18+E31","v":0},null,{"$f":"G18+G31","v":0},null,{"$f":"I18+I31","v":0},null,{"$f":"K18+K31","v":0}]
[]
["Plan izvora financiranja",null,null,null,null,null,null,null,null,null,"Iznos u kn"]
["1. ","Vlastita sredstva (niže navesti namjenu):"]
[]
["2.","Kredit HBOR-a",null,null,null,null,null,null,null,null,{"$f":"K38+K39","v":0}]
[null,"- troškovi projekta"]
[null,"- obrtna sredstva"]
["3.","Grant",null,null,null,null,null,null,null,null,{"$f":"K41+K42","v":0}]
[null,"- predujam"]
[null,"- rate"]
["Ukupno (1. + 2. + 3.)",null,null,null,null,null,null,null,null,null,{"$f":"K35+K37+K40","v":0}]
[]
["Pojašnjenja",null,null,null,null,null,null,null,null,null,null,null,null,"Pojašnjenja: navesti ako su eventualno navedeni iznosi s PDV-om i zašto (u slučajevima kada korisnik kredita obavlja isporuku dobara ili pruža usluge koje su po Zakonu o porezu na dodanu vrijednost izuzete od obračunavanja PDV-a, a u tu svrhu se odobrava kredit HBOR-a, kao i u slučajevima kada korisnik kredita ne ostvaruje prihod dovoljan za ulazak u sustav PDV-a, HBOR može razmotriti kreditiranje predračunske vrijednosti investicije s PDV-om). Navesti eventualno druge važne napomene."]
[]
[]
["Prethodno uložena sredstva"]
["Vlastita sredstva",null,null,null,null,null,null,null,null,null,null,null,null,"Vlastita sredstva: navesti ako postoje stavke vlastitih sredstava u strukturi investicije koje su realizirane. Za svaku stavku navesti: naziv, osnovu realizacije (ugovoreno i/ili plaćeno), iznos i datum realizacije."]
[]
["Kredit HBOR-a",null,null,null,null,null,null,null,null,null,null,null,null,"Kredit HBOR-a: navesti ako postoje stavke ukupnog kredita u strukturi investicije koje su plaćene iz vlastitih sredstava ili se planiraju platiti prije povlačenja sredstava kredita. Za svaku stavku navesti: naziv, iznos i datum (ili planirani datum) plaćanja. Refundaciju sredstava HBOR može prihvatiti iznimno za propisane vrste ulaganja i na propisani način (Odluka o općim uvjetima kreditnog poslovanja HBOR-a, točka 5.6. Način korištenja kredita - kod izravnog kreditiranja)."]
[]
[]
["Vrsta vlastitog udjela u investiciji (označiti)",null,null,null,null,null,null,null,null,null,null,"Iznos u kn"]
["Vlastiti izvori financiranja",null,null,null,null,null,null,null,null,null,{"$f":"SUM(K56:L57)","v":0}]
["      Novčana sredstva investitora"]
["      Osnovna sredstva investitora pribavljena radi investicije"]
["Ostali izvori financiranja",null,null,null,null,null,null,null,null,null,{"$f":"SUM(K59:L64)","v":0}]
["      EU sredstva"]
["      Novčana sredstva drugih pravnih i fizičkih osoba"]
["      Kreditna sredstva drugih financijskih institucija"]
["      Ulog drugih pravnih ili fizičkih osoba (u novcu ili stvarima)"]
["      Ostalo (niže navesti što):"]
[]
["Ukupno",null,null,null,null,null,null,null,null,null,{"$f":"K55+K58","v":0}]
[]
["Zaštita okoliša",null,null,null,null,null,null,null,null,null,"označiti",null,null,"Zaštita okoliša: označiti karakteristike projekta/investicije s aspekta zaštite okoliša. Ukoliko poslovna banka ne može ove karakteristike ocijeniti sama, ocjenu će napraviti HBOR u kojem slučaju je potrebno dostaviti ispunjen Upitnik o zaštiti okoliša te eventualno i drugu potrebnu dokumentaciju."]
["Karakterisike projekta/investicije s aspekta zaštite okoliša",null,null,null,"Energetska učinkovitost"]
[null,null,null,null,"Usklađenost sa zakonima o zaštiti okoliša"]
[null,null,null,null,"Potrebna procjena utjecaja na okoliš"]
[null,null,null,null,"Postoji ili je ustanovljen osobiti rizik za okoliš u području zaštite prirode"]
[null,null,null,null,"Ne može ocijeniti poslovna banka, ocjenjuje HBOR"]
[]
["Planirana dinamika korištenja kredita"]
["Mjesec/godina",null,null,"Iznos u kn"]
[]
[]
[]
[]
[]
[]
[]
[]
[]
[]
[]
[]
[]
["Klijent"]
["Mjesto i datum",null,null,null,null,null,"Ime i prezime ovlaštene osobe i potpis"]
[]
[]
[]
["Poslovna banka"]
["Mjesto i datum",null,null,null,null,null,"Ime i prezime ovlaštene osobe i potpis"]

{"sheet":"Obrtna sredstva","index":3,"n_rows":56,"n_cols":13,"rows_kept":56,"cut":false,"hidden":false,"merged":[[55,6,55,11],[39,12,40,23],[33,0,33,10],[33,12,35,23],[2,8,2,10],[37,1,37,8],[34,9,34,10],[34,1,34,8],[12,1,12,8],[35,9,35,10],[37,9,37,10],[31,0,31,2],[31,3,31,5],[12,9,12,10],[13,9,13,10],[14,9,14,10],[30,0,30,2],[30,3,30,5],[0,0,0,5],[11,9,11,10],[6,1,6,8],[7,1,7,8],[8,1,8,8],[9,1,9,8],[6,9,6,10],[7,9,7,10],[8,9,8,10],[9,9,9,10],[10,9,10,10],[2,0,2,1],[2,2,2,6],[0,9,0,10],[29,0,29,2],[25,0,25,2],[25,3,25,5],[26,0,26,2],[26,3,26,5],[27,0,27,2],[27,3,27,5],[28,0,28,2],[28,3,28,5],[29,3,29,5],[21,3,21,5],[22,0,22,2],[22,3,22,5],[24,0,24,2],[24,3,24,5],[10,1,10,8],[17,1,17,3],[17,4,17,5],[13,1,13,8],[14,1,14,8],[15,1,15,8],[16,1,16,8],[17,6,17,7],[17,8,17,9],[11,1,11,8],[49,0,49,4],[44,0,44,8],[50,0,50,4],[50,6,50,11],[15,9,15,10],[16,9,16,10],[36,9,36,10],[23,0,23,2],[23,3,23,5],[19,0,19,2],[19,3,19,5],[20,0,20,2],[20,3,20,5],[21,0,21,2],[35,1,35,8],[36,1,36,8],[41,9,41,10],[46,9,46,10],[44,9,44,10],[47,1,47,8],[47,9,47,10],[51,6,52,9],[56,6,57,9],[39,0,39,8],[56,0,57,4],[51,0,52,4],[54,0,54,4],[55,0,55,4],[42,1,42,8],[42,9,42,10],[45,1,45,8],[45,9,45,10],[46,1,46,8],[39,9,39,10],[40,1,40,8],[40,9,40,10],[41,1,41,8]]}
["Podaci o ulaganju (klijentu) - Obrtna sredstva",null,null,null,null,null,null,"Datum izvještaja:"]
[]
["Naziv klijenta:",null,null,null,null,null,null,"OIB:"]
[]
["PDV uključen:"]
["Specifikacija namjene ulaganja / kredita"]
["RB","Namjena",null,null,null,null,null,null,null,"Iznos u kn"]
[]
[]
[]
[]
[]
[]
[]
[]
[]
[null,"Ukupno:",null,null,null,null,null,null,null,{"$f":"SUM(J8:K16)","v":0}]
[]
["Planirana dinamika korištenja kredita"]
["mjesec/godina",null,null,"iznos u kn"]
[]
[]
[]
[]
[]
[]
[]
[]
[]
[]
[]
[]
[]
["Proračun potrebnih obrtnih sredstva",null,null,null,null,null,null,null,null,null,null,null,"Proračun potrebnih obrtnih sredstva: za podnositelje zahtjeva u djelatnostima proizvodnje i/ili izvoza. Vrijeme vezivanja obrtnih sredstava u proizvodnji (prosječan broj dana vezivanja) podrazumijeva prosječno vrijeme proizvodnje (na temelju zaliha materijala, zaliha nedovšrene proizvodnje i zaliha gotovih proizvoda), isporuke i naplate (na temelju potpisanih ugovora, narudžbi).\n"]
["1.","Planirana vrijednost prihoda od proizvodnje i/ili izvoza za tekuću godinu u kn"]
["2.","PBDV - prosječan broj dana vezivanja"]
["3.","KO - Koeficijent obrtaja (KO=365/PBDV)",null,null,null,null,null,null,null,{"$f":"(365/J36)","v":{"$error":"#DIV/0!"}}]
["4.","OBS - Potrebna obrtna sredstva (OBS=Planirana vrijednost prihoda/KO)",null,null,null,null,null,null,null,{"$f":"J35/J37","v":{"$error":"#DIV/0!"}}]
[]
["Prve tri zemlje po obimu direktnog izvoza i njihov udio u prihodima iz inozemstva",null,null,null,null,null,null,null,null,"udio u %",null,null,"Prve tri zemlje po obimu direktnog izvoza i njihov udio u prihodima iz inozemstva: ispunjava se za klijente sa zahtjevom za kredit prema programu Priprema izvoza."]
["1."]
["2."]
["3."]
[]
["Klijent je izvoznik koji",null,null,null,null,null,null,null,null,"označiti",null,null,"Klijent je izvoznik:  ispunjava se za klijente sa zahtjevom za kredit prema programu Priprema izvoza."]
["a.","prvi put nastupa na stranim tržištima",null,null,null,null,null,null,null,"  "]
["b.","prvi put nastupa na stranom tržištu na kojem do sada nije bio prisutan"]
["c.","na strano tržište na kojem je već prisutan plasira novi proizvod i/ili uslugu"]
[]
["Klijent"]
["Mjesto i datum",null,null,null,null,null,"Ime i prezime ovlaštene osobe i potpis"]
[]
[]
[]
["Poslovna banka"]
["Mjesto i datum",null,null,null,null,null,"Ime i prezime ovlaštene osobe i potpis"]

{"sheet":"Restrukturiranje","index":4,"n_rows":55,"n_cols":13,"rows_kept":55,"cut":false,"hidden":false,"merged":[[0,0,0,5],[39,3,39,5],[34,0,34,2],[34,3,34,5],[35,0,35,2],[35,3,35,5],[36,0,36,2],[36,3,36,5],[31,0,31,2],[31,3,31,5],[32,0,32,2],[32,3,32,5],[25,0,25,4],[25,5,25,8],[15,5,15,8],[11,0,11,4],[18,5,18,8],[18,9,18,10],[19,0,19,4],[19,5,19,8],[19,9,19,10],[17,0,17,8],[20,0,20,4],[20,5,20,8],[43,12,44,19],[24,0,24,4],[24,9,24,10],[25,9,25,10],[22,0,22,4],[22,5,22,8],[22,9,22,10],[23,0,23,4],[8,9,8,10],[6,0,7,4],[6,5,7,8],[11,9,11,10],[12,0,12,4],[12,5,12,8],[12,9,12,10],[9,0,9,4],[9,5,9,8],[9,9,9,10],[10,0,10,4],[10,5,10,8],[6,9,7,10],[8,0,8,8],[55,0,56,4],[48,0,48,4],[40,0,40,2],[40,3,40,5],[41,0,41,2],[41,3,41,5],[37,0,37,2],[37,3,37,5],[38,0,38,2],[38,3,38,5],[39,0,39,2],[45,0,45,8],[46,0,46,8],[49,6,49,11],[54,6,54,11],[14,9,14,10],[15,0,15,4],[49,0,49,4],[50,0,51,4],[53,0,53,4],[54,0,54,4],[45,9,45,10],[46,9,46,10],[29,0,29,2],[29,3,29,5],[30,0,30,2],[30,3,30,5],[26,0,26,4],[26,5,26,8],[26,9,26,10],[24,5,24,8],[20,9,20,10],[21,0,21,4],[21,5,21,8],[21,9,21,10],[17,9,17,10],[23,5,23,8],[23,9,23,10],[18,0,18,4],[0,9,0,10],[0,7,0,8],[2,8,2,10],[50,6,51,9],[55,6,56,9],[2,0,2,1],[2,2,2,6],[43,0,43,4],[44,9,44,10],[44,7,44,8],[44,5,44,6],[33,0,33,2],[33,3,33,5],[10,9,10,10],[11,5,11,8],[15,9,15,10],[16,0,16,4],[16,5,16,8],[16,9,16,10],[13,0,13,4],[13,5,13,8],[13,9,13,10],[14,0,14,4],[14,5,14,8]]}
["Podaci o ulaganju (klijentu) - Restrukturiranje",null,null,null,null,null,null,"Datum izvještaja:"]
[]
["Naziv klijenta:",null,null,null,null,null,null,"OIB:"]
[]
["PDV uključen:"]
["Specifikacija namjene ulaganja / kredita"]
["Stavka",null,null,null,null,"Uvjeti\n(datum odobrenja, rok otplate, kamatna stopa)",null,null,null,"Iznos u kn"]
[]
["I. Kreditne obveze ukupno (prema stavkama niže)",null,null,null,null,null,null,null,null,{"$f":"SUM(J10:K17)","v":0}]
[]
[]
[]
[]
[]
[]
[]
[]
["II. Dobavljači ukupno (prema stavkama niže)",null,null,null,null,null,null,null,null,{"$f":"SUM(J19:K26)","v":0}]
[null,null,null,null,null,"-"]
[null,null,null,null,null,"-"]
[null,null,null,null,null,"-"]
[null,null,null,null,null,"-"]
[null,null,null,null,null,"-"]
[null,null,null,null,null,"-"]
[null,null,null,null,null,"-"]
[null,null,null,null,null,"-"]
["III. Sveukupno",null,null,null,null,null,null,null,null,{"$f":"J9+J18","v":0}]
[]
["Planirana dinamika korištenja kredita"]
["mjesec/godina",null,null,"iznos u kn"]
[]
[]
[]
[]
[]
[]
[]
[]
[]
[]
[]
[]
[]
["Podaci o klijentu prema uvjetima Programa",null,null,null,null,null,null,null,null,null,null,null,"Podaci o klijentu prema uvjetima Programa: ispunjava se za trgovačka društva i ostale poslovne subjekte u sustavu poreza na dobit."]
["Udio kapitala u pasivi bilance ≥ 10%",null,null,null,null,"Na datum:",null,null,null,"        Da\n        Ne"]
["Neto dobit u zadnje dvije poslovne godine",null,null,null,null,null,null,null,null,"       Nije isplaćena\n       Isplaćena"]
["Pozajmice u zadnje dvije poslovne godine \n(osim pozajmica povezanim osobama za potrebe operativnog razvoja i poslovanja)",null,null,null,null,null,null,null,null,"      Nisu isplaćene\n      Isplaćene"]
[]
["Klijent"]
["Mjesto i datum",null,null,null,null,null,"Ime i prezime ovlaštene osobe i potpis"]
[]
[]
[]
["Poslovna banka"]
["Mjesto i datum",null,null,null,null,null,"Ime i prezime ovlaštene osobe i potpis"]